[Event "Late-Titled-Tuesday-Blitz-August-29-2023"]
[Site "Chess.com"]
[Date "2023.08.29"]
[Round "2"]
[White "Dhaydon19"]
[Black "Quattroporte300"]
[Result "1-0"]
[WhiteElo "2646"]
[BlackElo "2399"]
[TimeControl "180+1"]
[EndTime "14:17:59 PDT"]
[Termination "Dhaydon19 won on time"]

1. d4 {[%clk 0:03:00.9]} 1... Nf6 {[%clk 0:02:58.8]} 2. Nc3 {[%clk 0:02:57]}
2... d5 {[%clk 0:02:46.4]} 3. Bf4 {[%clk 0:02:53.5]} 3... a6 {[%clk 0:02:35.9]}
4. e3 {[%clk 0:02:45.3]} 4... Bf5 {[%clk 0:02:12.4]} 5. Bd3 {[%clk 0:02:44.4]}
5... Bxd3 {[%clk 0:02:09.5]} 6. cxd3 {[%clk 0:02:44.6]} 6... e6 {[%clk
0:01:57.2]} 7. g4 {[%clk 0:02:43.4]} 7... c5 {[%clk 0:01:40.8]} 8. dxc5 {[%clk
0:02:39.4]} 8... Bxc5 {[%clk 0:01:18.2]} 9. g5 {[%clk 0:02:38.2]} 9... Nfd7
{[%clk 0:01:11.5]} 10. d4 {[%clk 0:02:36.7]} 10... Be7 {[%clk 0:00:53.3]} 11. h4
{[%clk 0:02:35.3]} 11... Nc6 {[%clk 0:00:49.9]} 12. Nf3 {[%clk 0:02:35.2]} 12...
b5 {[%clk 0:00:39.1]} 13. Rc1 {[%clk 0:02:33.9]} 13... Rc8 {[%clk 0:00:36.5]}
14. h5 {[%clk 0:02:34]} 14... Nb6 {[%clk 0:00:30.4]} 15. Rg1 {[%clk 0:02:30]}
15... b4 {[%clk 0:00:27]} 16. Na4 {[%clk 0:02:24.4]} 16... Nc4 {[%clk
0:00:24.1]} 17. b3 {[%clk 0:02:23.1]} 17... Nd6 {[%clk 0:00:20.6]} 18. g6 {[%clk
0:02:18.8]} 18... hxg6 {[%clk 0:00:18]} 19. hxg6 {[%clk 0:02:19]} 19... f6
{[%clk 0:00:17.1]} 20. Nc5 {[%clk 0:02:16.4]} 20... a5 {[%clk 0:00:15.2]} 21.
Nxe6 {[%clk 0:02:15.4]} 21... Qd7 {[%clk 0:00:15.5]} 22. Nc5 {[%clk 0:02:09.3]}
22... Qf5 {[%clk 0:00:14.3]} 23. Qd3 {[%clk 0:02:05.5]} 23... Qxd3 {[%clk
0:00:12.8]} 24. Nxd3 {[%clk 0:02:03.6]} 24... Kd7 {[%clk 0:00:13.2]} 25. Nc5+
{[%clk 0:02:01]} 25... Ke8 {[%clk 0:00:11.3]} 26. Ne6 {[%clk 0:01:58.6]} 26...
Rg8 {[%clk 0:00:10.1]} 27. Ke2 {[%clk 0:01:55.1]} 27... Ne4 {[%clk 0:00:08.2]}
28. Nc7+ {[%clk 0:01:48.1]} 28... Rxc7 {[%clk 0:00:06.3]} 29. Bxc7 {[%clk
0:01:47.8]} 29... Nc3+ {[%clk 0:00:07.2]} 30. Kd3 {[%clk 0:01:47]} 30... Kd7
{[%clk 0:00:07.6]} 31. Bg3 {[%clk 0:01:38.2]} 31... Rc8 {[%clk 0:00:06.4]} 32.
Nh4 {[%clk 0:01:37.5]} 32... Na7 {[%clk 0:00:05.8]} 33. Nf5 {[%clk 0:01:36.8]}
33... Bf8 {[%clk 0:00:06.7]} 34. Rc2 {[%clk 0:01:34.8]} 34... Nab5 {[%clk
0:00:07.1]} 35. Rgc1 {[%clk 0:01:32.1]} 35... Ra8 {[%clk 0:00:07.4]} 36. f3
{[%clk 0:01:27.7]} 36... a4 {[%clk 0:00:07.4]} 37. e4 {[%clk 0:01:27.4]} 37...
axb3 {[%clk 0:00:06.1]} 38. axb3 {[%clk 0:01:28.1]} 38... Ra3 {[%clk 0:00:06.6]}
39. Rb2 {[%clk 0:01:27.7]} 39... dxe4+ {[%clk 0:00:04]} 40. fxe4 {[%clk
0:01:27.5]} 40... Ra8 {[%clk 0:00:03]} 41. Be1 {[%clk 0:01:25.2]} 41... Re8
{[%clk 0:00:02.9]} 42. Bxc3 {[%clk 0:01:23.7]} 42... Nxc3 {[%clk 0:00:03.8]} 43.
Rxc3 {[%clk 0:01:14.9]} 43... bxc3 {[%clk 0:00:03.7]} 44. Rc2 {[%clk 0:01:15.6]}
44... Rb8 {[%clk 0:00:03.9]} 45. Rxc3 {[%clk 0:01:14.3]} 45... Rb5 {[%clk
0:00:04.2]} 46. d5 {[%clk 0:01:13.8]} 46... Ra5 {[%clk 0:00:04.1]} 47. Nd4
{[%clk 0:01:13.9]} 47... Ra1 {[%clk 0:00:03.9]} 48. Ne6 {[%clk 0:01:14.2]} 48...
Bb4 {[%clk 0:00:03.9]} 49. Rc7+ {[%clk 0:01:12.7]} 49... Kd6 {[%clk 0:00:03.4]}
50. Rc6+ {[%clk 0:01:13.2]} 50... Kd7 {[%clk 0:00:03.4]} 51. Nxg7 {[%clk
0:01:13.3]} 51... Rg1 {[%clk 0:00:01.1]} 52. Ne6 {[%clk 0:01:12.7]} 52... Rxg6
{[%clk 0:00:01.4]} 53. Rb6 {[%clk 0:01:13]} 53... Bd6 {[%clk 0:00:01.2]} 54.
Rb7+ {[%clk 0:01:11.8]} 1-0

[Event "Late-Titled-Tuesday-Blitz-August-29-2023"]
[Site "Chess.com"]
[Date "2023.08.29"]
[Round "2"]
[White "GMMikhailKazakov"]
[Black "ahkashefi2800"]
[Result "0-1"]
[WhiteElo "2384"]
[BlackElo "2562"]
[TimeControl "180+1"]
[EndTime "14:17:59 PDT"]
[Termination "ahkashefi2800 won on time"]

1. e4 {[%clk 0:02:53.2]} 1... c6 {[%clk 0:02:58.3]} 2. d4 {[%clk 0:02:49]} 2...
d5 {[%clk 0:02:59.2]} 3. exd5 {[%clk 0:02:47.3]} 3... cxd5 {[%clk 0:03:00.1]} 4.
c4 {[%clk 0:02:45.8]} 4... Nf6 {[%clk 0:02:59.8]} 5. Nc3 {[%clk 0:02:43.8]} 5...
e6 {[%clk 0:02:59.3]} 6. Nf3 {[%clk 0:02:42]} 6... Bb4 {[%clk 0:02:58]} 7. cxd5
{[%clk 0:02:40.5]} 7... Nxd5 {[%clk 0:02:57.6]} 8. Qc2 {[%clk 0:02:35.8]} 8...
Nc6 {[%clk 0:02:55.4]} 9. Bd2 {[%clk 0:02:23.6]} 9... O-O {[%clk 0:02:54.3]} 10.
Bd3 {[%clk 0:02:21]} 10... Nf6 {[%clk 0:02:54.4]} 11. Be3 {[%clk 0:02:11.1]}
11... b6 {[%clk 0:02:48.8]} 12. O-O {[%clk 0:02:07.8]} 12... Bb7 {[%clk
0:02:48.5]} 13. Rad1 {[%clk 0:02:05.6]} 13... Be7 {[%clk 0:02:47.8]} 14. Qe2
{[%clk 0:02:03]} 14... Rc8 {[%clk 0:02:46.9]} 15. Bb1 {[%clk 0:02:02.6]} 15...
Nb4 {[%clk 0:02:45.9]} 16. Ne5 {[%clk 0:01:59.8]} 16... Nbd5 {[%clk 0:02:41.7]}
17. Bd2 {[%clk 0:01:57.4]} 17... Qc7 {[%clk 0:02:38.9]} 18. Qd3 {[%clk
0:01:49.2]} 18... Rfd8 {[%clk 0:02:32.8]} 19. Qh3 {[%clk 0:01:46.5]} 19... Bf8
{[%clk 0:02:05.8]} 20. Bg5 {[%clk 0:01:32.8]} 20... h6 {[%clk 0:02:03.8]} 21.
Nxd5 {[%clk 0:01:22.4]} 21... Rxd5 {[%clk 0:02:01.1]} 22. Bxf6 {[%clk
0:01:04.6]} 22... gxf6 {[%clk 0:02:02]} 23. Qd3 {[%clk 0:00:59.9]} 23... Bg7
{[%clk 0:01:51.3]} 24. Qh7+ {[%clk 0:00:52.2]} 24... Kf8 {[%clk 0:01:51.2]} 25.
Nf3 {[%clk 0:00:51.9]} 25... Rh5 {[%clk 0:01:48.2]} 26. Be4 {[%clk 0:00:46.5]}
26... Bxe4 {[%clk 0:01:35.3]} 27. Qxe4 {[%clk 0:00:47.4]} 27... Qc2 {[%clk
0:01:34.7]} 28. Qxc2 {[%clk 0:00:35.4]} 28... Rxc2 {[%clk 0:01:34.2]} 29. Rc1
{[%clk 0:00:35.6]} 29... Rxb2 {[%clk 0:01:27.3]} 30. Rc8+ {[%clk 0:00:33.6]}
30... Ke7 {[%clk 0:01:26.5]} 31. Rc7+ {[%clk 0:00:34.5]} 31... Kf8 {[%clk
0:01:21.3]} 32. Rfc1 {[%clk 0:00:26.1]} 32... Kg8 {[%clk 0:01:21.1]} 33. Rxa7
{[%clk 0:00:23]} 33... Ra5 {[%clk 0:01:17.2]} 34. Rxa5 {[%clk 0:00:13.7]} 34...
bxa5 {[%clk 0:01:18.1]} 35. g3 {[%clk 0:00:14.1]} 35... f5 {[%clk 0:01:18.4]}
36. Rc8+ {[%clk 0:00:12.6]} 36... Kh7 {[%clk 0:01:15.9]} 37. Rc7 {[%clk
0:00:13]} 37... Kg6 {[%clk 0:01:16.1]} 38. h4 {[%clk 0:00:09.3]} 38... Rxa2
{[%clk 0:01:16.1]} 39. h5+ {[%clk 0:00:09.4]} 39... Kxh5 {[%clk 0:01:14.8]} 40.
Rxf7 {[%clk 0:00:08.3]} 40... Kg6 {[%clk 0:01:15.3]} 41. Re7 {[%clk 0:00:08.1]}
41... Ra3 {[%clk 0:01:11.9]} 42. Kg2 {[%clk 0:00:07]} 42... Kf6 {[%clk
0:01:09.1]} 43. Ra7 {[%clk 0:00:05.5]} 43... Ra4 {[%clk 0:01:08.9]} 44. d5
{[%clk 0:00:02.6]} 44... exd5 {[%clk 0:01:05.9]} 45. Ra6+ {[%clk 0:00:03.5]}
45... Kf7 {[%clk 0:01:04.9]} 46. Ra7+ {[%clk 0:00:02.4]} 46... Kg8 {[%clk
0:01:03.9]} 47. Nh4 {[%clk 0:00:02.8]} 47... f4 {[%clk 0:01:02.7]} 48. Nf5
{[%clk 0:00:03]} 48... Bf8 {[%clk 0:01:03.2]} 0-1

[Event "Late-Titled-Tuesday-Blitz-August-29-2023"]
[Site "Chess.com"]
[Date "2023.08.29"]
[Round "2"]
[White "NMJeevanK"]
[Black "EsmeraldasAnderson03"]
[Result "1-0"]
[WhiteElo "2525"]
[BlackElo "2369"]
[TimeControl "180+1"]
[EndTime "14:17:59 PDT"]
[Termination "NMJeevanK won by checkmate"]

1. e4 {[%clk 0:03:00.6]} 1... c5 {[%clk 0:02:48]} 2. Nf3 {[%clk 0:02:56.6]} 2...
d6 {[%clk 0:02:47.6]} 3. b3 {[%clk 0:02:52.1]} 3... Nf6 {[%clk 0:02:44.6]} 4.
Qe2 {[%clk 0:02:39.3]} 4... e6 {[%clk 0:02:39.6]} 5. Bb2 {[%clk 0:02:36.4]} 5...
d5 {[%clk 0:02:40]} 6. exd5 {[%clk 0:02:31.6]} 6... Nxd5 {[%clk 0:02:39.2]} 7.
Nc3 {[%clk 0:02:28.7]} 7... Nc6 {[%clk 0:02:39.1]} 8. Nxd5 {[%clk 0:02:26.2]}
8... Qxd5 {[%clk 0:02:40]} 9. g3 {[%clk 0:02:18]} 9... b6 {[%clk 0:02:38.1]} 10.
Bg2 {[%clk 0:02:17.6]} 10... Bb7 {[%clk 0:02:37.4]} 11. O-O-O {[%clk 0:02:04.8]}
11... Nd4 {[%clk 0:02:27.8]} 12. Nxd4 {[%clk 0:01:50.4]} 12... Qxg2 {[%clk
0:02:27.6]} 13. Qb5+ {[%clk 0:01:40.1]} 13... Kd8 {[%clk 0:02:24.2]} 14. Ne2
{[%clk 0:01:38.9]} 14... Qc6 {[%clk 0:02:13.3]} 15. Qd3+ {[%clk 0:01:32.9]}
15... Qd7 {[%clk 0:02:12.7]} 16. Qxd7+ {[%clk 0:01:29.2]} 16... Kxd7 {[%clk
0:02:13.6]} 17. Rhe1 {[%clk 0:01:28.9]} 17... Kc7 {[%clk 0:02:12.8]} 18. Be5+
{[%clk 0:01:23.3]} 18... Bd6 {[%clk 0:02:06.5]} 19. Bxg7 {[%clk 0:01:21.2]}
19... Rhg8 {[%clk 0:02:07.1]} 20. Bc3 {[%clk 0:01:17.7]} 20... Bf3 {[%clk
0:02:07.2]} 21. d4 {[%clk 0:01:15.5]} 21... cxd4 {[%clk 0:02:05.5]} 22. Rxd4
{[%clk 0:01:16.4]} 22... Rad8 {[%clk 0:01:56.7]} 23. Nf4 {[%clk 0:01:07.5]}
23... e5 {[%clk 0:01:56.2]} 24. Rc4+ {[%clk 0:01:01.7]} 24... Kb7 {[%clk
0:01:49.7]} 25. Bxe5 {[%clk 0:00:34]} 25... Rge8 {[%clk 0:01:48.4]} 26. Nd3
{[%clk 0:00:34.2]} 26... Ba3+ {[%clk 0:01:27.7]} 27. Kd2 {[%clk 0:00:31.3]}
27... Bf8 {[%clk 0:00:51.3]} 28. Rc7+ {[%clk 0:00:28.8]} 28... Ka6 {[%clk
0:00:47.8]} 29. Rxf7 {[%clk 0:00:27.8]} 29... Bb4+ {[%clk 0:00:38]} 30. c3
{[%clk 0:00:19.1]} 30... Bh5 {[%clk 0:00:37.6]} 31. Rf4 {[%clk 0:00:14.5]} 31...
Bg6 {[%clk 0:00:36.1]} 32. Rd4 {[%clk 0:00:14.1]} 32... Bf5 {[%clk 0:00:23.9]}
33. Nxb4+ {[%clk 0:00:11.2]} 33... Kb7 {[%clk 0:00:23.6]} 34. Rxd8 {[%clk
0:00:10.1]} 34... Rxd8+ {[%clk 0:00:24.5]} 35. Bd4 {[%clk 0:00:10.6]} 35... a5
{[%clk 0:00:24.3]} 36. Nd3 {[%clk 0:00:10.9]} 36... Bg6 {[%clk 0:00:22.9]} 37.
Re7+ {[%clk 0:00:10.8]} 37... Kc6 {[%clk 0:00:22.7]} 38. Re6+ {[%clk 0:00:11.1]}
38... Kd5 {[%clk 0:00:23.1]} 39. Nf4# {[%clk 0:00:11.3]} 1-0

[Event "Late-Titled-Tuesday-Blitz-August-29-2023"]
[Site "Chess.com"]
[Date "2023.08.29"]
[Round "2"]
[White "biostatistician"]
[Black "dretch"]
[Result "0-1"]
[WhiteElo "2573"]
[BlackElo "2908"]
[TimeControl "180+1"]
[EndTime "14:18:04 PDT"]
[Termination "dretch won on time"]

1. d4 {[%clk 0:02:59.7]} 1... d5 {[%clk 0:02:58.7]} 2. Nf3 {[%clk 0:02:57]} 2...
Nf6 {[%clk 0:02:58.7]} 3. c4 {[%clk 0:02:57.2]} 3... c6 {[%clk 0:02:59]} 4. cxd5
{[%clk 0:02:57]} 4... cxd5 {[%clk 0:02:59.9]} 5. Nc3 {[%clk 0:02:57.7]} 5... Nc6
{[%clk 0:03:00.5]} 6. Bf4 {[%clk 0:02:58.2]} 6... Nh5 {[%clk 0:03:00.9]} 7. Bd2
{[%clk 0:02:57.9]} 7... e6 {[%clk 0:03:00.9]} 8. e3 {[%clk 0:02:58.2]} 8... Bd6
{[%clk 0:03:01.1]} 9. Bd3 {[%clk 0:02:58.5]} 9... f5 {[%clk 0:02:59.2]} 10. Ne5
{[%clk 0:02:41.1]} 10... g6 {[%clk 0:02:58.7]} 11. Nxc6 {[%clk 0:02:38.9]} 11...
bxc6 {[%clk 0:02:58.8]} 12. Na4 {[%clk 0:02:38.3]} 12... O-O {[%clk 0:02:48.6]}
13. Rc1 {[%clk 0:02:38.2]} 13... f4 {[%clk 0:02:34.8]} 14. Rxc6 {[%clk
0:02:27.9]} 14... fxe3 {[%clk 0:02:34.1]} 15. Bxe3 {[%clk 0:02:27.4]} 15... Bb4+
{[%clk 0:02:33.7]} 16. Kf1 {[%clk 0:02:20]} 16... Bd7 {[%clk 0:02:31.6]} 17. Rc1
{[%clk 0:02:15.2]} 17... Qh4 {[%clk 0:02:23.9]} 18. Kg1 {[%clk 0:02:08.2]} 18...
Bxa4 {[%clk 0:01:53.1]} 19. Qxa4 {[%clk 0:02:09.1]} 19... Bd2 {[%clk 0:01:50.7]}
20. Rf1 {[%clk 0:01:42.9]} 20... Bxe3 {[%clk 0:01:41.7]} 21. fxe3 {[%clk
0:01:43.8]} 21... Rxf1+ {[%clk 0:01:41.9]} 22. Bxf1 {[%clk 0:01:44.3]} 22... Rf8
{[%clk 0:01:14.4]} 23. Qc2 {[%clk 0:01:43.6]} 23... Qe1 {[%clk 0:01:13.3]} 24.
Qe2 {[%clk 0:01:42]} 24... Qb1 {[%clk 0:01:04.4]} 25. g3 {[%clk 0:01:11.3]}
25... Nf6 {[%clk 0:00:59.6]} 26. Qa6 {[%clk 0:00:16.5]} 26... Ng4 {[%clk
0:00:46.9]} 27. Qxe6+ {[%clk 0:00:15]} 27... Kh8 {[%clk 0:00:45.5]} 28. Kg2
{[%clk 0:00:10.7]} 28... Qc2+ {[%clk 0:00:40.7]} 29. Kh3 {[%clk 0:00:10.6]}
29... Nf2+ {[%clk 0:00:41.1]} 30. Kh4 {[%clk 0:00:10.2]} 30... Nxh1 {[%clk
0:00:41.3]} 31. Qe5+ {[%clk 0:00:08]} 31... Kg8 {[%clk 0:00:40.9]} 32. Qe6+
{[%clk 0:00:08.3]} 32... Kg7 {[%clk 0:00:38.5]} 33. Qe5+ {[%clk 0:00:07.4]}
33... Rf6 {[%clk 0:00:37.8]} 34. Qe7+ {[%clk 0:00:07.6]} 34... Rf7 {[%clk
0:00:38]} 35. Qe5+ {[%clk 0:00:08.1]} 35... Kf8 {[%clk 0:00:31.1]} 36. Qh8+
{[%clk 0:00:05.3]} 36... Ke7 {[%clk 0:00:29.8]} 37. Qe5+ {[%clk 0:00:06.2]}
37... Kd8 {[%clk 0:00:29.6]} 38. Qd6+ {[%clk 0:00:02]} 38... Rd7 {[%clk
0:00:27.7]} 0-1

[Event "Late-Titled-Tuesday-Blitz-August-29-2023"]
[Site "Chess.com"]
[Date "2023.08.29"]
[Round "2"]
[White "CarlosjPineror"]
[Black "CheckThis4"]
[Result "0-1"]
[WhiteElo "2397"]
[BlackElo "2632"]
[TimeControl "180+1"]
[EndTime "14:18:04 PDT"]
[Termination "CheckThis4 won on time"]

1. e4 {[%clk 0:02:52.3]} 1... c5 {[%clk 0:02:58.8]} 2. Nf3 {[%clk 0:02:38.6]}
2... d5 {[%clk 0:02:58.9]} 3. exd5 {[%clk 0:02:20.7]} 3... Nf6 {[%clk
0:02:58.5]} 4. Bb5+ {[%clk 0:02:17.4]} 4... Nbd7 {[%clk 0:02:50.4]} 5. O-O
{[%clk 0:02:02.6]} 5... a6 {[%clk 0:02:50.5]} 6. Be2 {[%clk 0:01:42]} 6... Nxd5
{[%clk 0:02:44.9]} 7. d4 {[%clk 0:01:41.4]} 7... e6 {[%clk 0:02:41.7]} 8. c4
{[%clk 0:01:26.6]} 8... N5f6 {[%clk 0:02:41]} 9. Nc3 {[%clk 0:00:52.5]} 9...
cxd4 {[%clk 0:02:40.1]} 10. Nxd4 {[%clk 0:00:51.1]} 10... Bc5 {[%clk 0:02:39.1]}
11. Nb3 {[%clk 0:00:38.2]} 11... Be7 {[%clk 0:02:37.8]} 12. Bf4 {[%clk 0:00:30]}
12... O-O {[%clk 0:02:33.6]} 13. Bf3 {[%clk 0:00:28.7]} 13... e5 {[%clk
0:02:14.7]} 14. Bg3 {[%clk 0:00:24.9]} 14... Qc7 {[%clk 0:02:13.3]} 15. Rc1
{[%clk 0:00:23.5]} 15... Rd8 {[%clk 0:02:05.9]} 16. Qe2 {[%clk 0:00:17.6]} 16...
Bd6 {[%clk 0:01:43.1]} 17. Rfd1 {[%clk 0:00:13.8]} 17... Nc5 {[%clk 0:01:17]}
18. Nd5 {[%clk 0:00:10.6]} 18... Nxd5 {[%clk 0:01:13.1]} 19. cxd5 {[%clk
0:00:10.2]} 19... b6 {[%clk 0:01:08]} 20. Nd2 {[%clk 0:00:09.2]} 20... Qe7
{[%clk 0:00:57.1]} 21. Nc4 {[%clk 0:00:06.1]} 21... f6 {[%clk 0:00:50.6]} 22.
Nxb6 {[%clk 0:00:05.1]} 22... Rb8 {[%clk 0:00:49.5]} 23. Nc4 {[%clk 0:00:05.2]}
23... a5 {[%clk 0:00:43.6]} 24. Nxd6 {[%clk 0:00:04.8]} 24... Qxd6 {[%clk
0:00:43.5]} 25. Qc4 {[%clk 0:00:04.8]} 25... Nd7 {[%clk 0:00:25.5]} 26. b3
{[%clk 0:00:04.5]} 26... Ba6 {[%clk 0:00:23.7]} 27. Qc6 {[%clk 0:00:03.9]} 27...
Rb6 {[%clk 0:00:22]} 28. Qxd6 {[%clk 0:00:03.1]} 28... Rxd6 {[%clk 0:00:22.9]}
29. Be4 {[%clk 0:00:03.2]} 29... g6 {[%clk 0:00:20.6]} 30. Bf3 {[%clk 0:00:02]}
30... Bb7 {[%clk 0:00:20.2]} 31. Rc6 {[%clk 0:00:02.8]} 31... Bxc6 {[%clk
0:00:20]} 32. dxc6 {[%clk 0:00:03.7]} 32... Rxd1+ {[%clk 0:00:19.6]} 33. Bxd1
{[%clk 0:00:04.1]} 33... Nb8 {[%clk 0:00:18.6]} 0-1

[Event "Late-Titled-Tuesday-Blitz-August-29-2023"]
[Site "Chess.com"]
[Date "2023.08.29"]
[Round "2"]
[White "misterlamine"]
[Black "only_strong_moves"]
[Result "0-1"]
[WhiteElo "2369"]
[BlackElo "2525"]
[TimeControl "180+1"]
[EndTime "14:18:05 PDT"]
[Termination "only_strong_moves won by resignation"]

1. d4 {[%clk 0:02:57.9]} 1... Nf6 {[%clk 0:02:59.6]} 2. c4 {[%clk 0:02:57.3]}
2... e6 {[%clk 0:03:00.1]} 3. Nf3 {[%clk 0:02:57]} 3... d5 {[%clk 0:02:59.3]} 4.
Nc3 {[%clk 0:02:54.7]} 4... c5 {[%clk 0:02:59.5]} 5. cxd5 {[%clk 0:02:54]} 5...
cxd4 {[%clk 0:02:58]} 6. Qxd4 {[%clk 0:02:53.5]} 6... exd5 {[%clk 0:02:56]} 7.
Bg5 {[%clk 0:02:52.5]} 7... Be7 {[%clk 0:02:56.6]} 8. e3 {[%clk 0:02:52.2]} 8...
O-O {[%clk 0:02:56.4]} 9. Be2 {[%clk 0:02:50.2]} 9... Nc6 {[%clk 0:02:56.5]} 10.
Qd1 {[%clk 0:02:46.2]} 10... h6 {[%clk 0:02:54.6]} 11. Bf4 {[%clk 0:02:38.8]}
11... Be6 {[%clk 0:02:47.6]} 12. O-O {[%clk 0:02:38]} 12... Qb6 {[%clk
0:02:31.8]} 13. Na4 {[%clk 0:02:23]} 13... Qa5 {[%clk 0:02:27.6]} 14. a3 {[%clk
0:02:22]} 14... Ne4 {[%clk 0:02:24.2]} 15. b4 {[%clk 0:02:14]} 15... Qd8 {[%clk
0:02:24.3]} 16. b5 {[%clk 0:02:12.7]} 16... Na5 {[%clk 0:02:20.4]} 17. Nd4
{[%clk 0:02:12.5]} 17... Bd7 {[%clk 0:02:18.7]} 18. Bd3 {[%clk 0:02:02]} 18...
Rc8 {[%clk 0:02:03.7]} 19. Bxe4 {[%clk 0:01:37.8]} 19... dxe4 {[%clk 0:02:04.6]}
20. Qb1 {[%clk 0:01:37.8]} 20... a6 {[%clk 0:01:32.8]} 21. Qxe4 {[%clk 0:01:28]}
21... axb5 {[%clk 0:01:31.8]} 22. Nb2 {[%clk 0:01:27.9]} 22... Re8 {[%clk
0:01:14.8]} 23. Qf3 {[%clk 0:01:20.2]} 23... Bf6 {[%clk 0:00:58.3]} 24. Rfd1
{[%clk 0:01:15.4]} 24... Qb6 {[%clk 0:00:47.8]} 25. Nd3 {[%clk 0:01:06.7]} 25...
Bxd4 {[%clk 0:00:39.4]} 26. exd4 {[%clk 0:01:05.9]} 26... Nb3 {[%clk 0:00:34.7]}
27. Nc5 {[%clk 0:00:46.2]} 27... Nxa1 {[%clk 0:00:23.4]} 28. Nxd7 {[%clk
0:00:44.1]} 28... Qe6 {[%clk 0:00:23.9]} 29. Ne5 {[%clk 0:00:35.6]} 29... Nc2
{[%clk 0:00:16.2]} 30. Qxb7 {[%clk 0:00:34.9]} 30... f6 {[%clk 0:00:15.6]} 31.
Nf3 {[%clk 0:00:34]} 31... Nxd4 {[%clk 0:00:11.3]} 32. Be3 {[%clk 0:00:23.3]}
32... Nxf3+ {[%clk 0:00:11.1]} 33. Qxf3 {[%clk 0:00:23]} 33... Rc3 {[%clk
0:00:09.7]} 34. Qb7 {[%clk 0:00:22.2]} 34... Rxe3 {[%clk 0:00:06.2]} 0-1

[Event "Late-Titled-Tuesday-Blitz-August-29-2023"]
[Site "Chess.com"]
[Date "2023.08.29"]
[Round "2"]
[White "Berant"]
[Black "WindWhistler11"]
[Result "1-0"]
[WhiteElo "2325"]
[BlackElo "2470"]
[TimeControl "180+1"]
[EndTime "14:18:08 PDT"]
[Termination "Berant won by resignation"]

1. e4 {[%clk 0:02:56.6]} 1... e6 {[%clk 0:02:58.3]} 2. d4 {[%clk 0:02:53.9]}
2... d5 {[%clk 0:02:57]} 3. Nd2 {[%clk 0:02:53.4]} 3... Nc6 {[%clk 0:02:52.9]}
4. Ngf3 {[%clk 0:02:50.6]} 4... Nf6 {[%clk 0:02:49.4]} 5. e5 {[%clk 0:02:47.8]}
5... Nd7 {[%clk 0:02:49.9]} 6. c3 {[%clk 0:02:47.2]} 6... f6 {[%clk 0:02:49.2]}
7. exf6 {[%clk 0:02:47]} 7... Qxf6 {[%clk 0:02:49.2]} 8. Bd3 {[%clk 0:02:46.7]}
8... Bd6 {[%clk 0:02:32.5]} 9. O-O {[%clk 0:02:43.8]} 9... O-O {[%clk
0:02:29.8]} 10. c4 {[%clk 0:02:42.5]} 10... Nb4 {[%clk 0:02:23.6]} 11. Bb1
{[%clk 0:02:39.3]} 11... c5 {[%clk 0:02:22.6]} 12. a3 {[%clk 0:02:35.6]} 12...
Nc6 {[%clk 0:02:21.3]} 13. cxd5 {[%clk 0:02:35.8]} 13... exd5 {[%clk 0:02:21.4]}
14. dxc5 {[%clk 0:02:36]} 14... Nxc5 {[%clk 0:02:18.9]} 15. Nb3 {[%clk
0:02:32.6]} 15... Be6 {[%clk 0:02:11.3]} 16. Nxc5 {[%clk 0:02:31.4]} 16... Bxc5
{[%clk 0:02:11.2]} 17. Qc2 {[%clk 0:02:30.5]} 17... Bb6 {[%clk 0:01:49.6]} 18.
Qxh7+ {[%clk 0:02:28.8]} 18... Kf7 {[%clk 0:01:50.1]} 19. Ng5+ {[%clk
0:02:22.7]} 19... Ke7 {[%clk 0:01:47.7]} 20. Nxe6 {[%clk 0:02:22]} 20... Kxe6
{[%clk 0:01:23.6]} 21. Be3 {[%clk 0:02:02.9]} 21... Bxe3 {[%clk 0:01:16.5]} 22.
Qh3+ {[%clk 0:02:01.4]} 22... Kd6 {[%clk 0:01:09.6]} 23. Qxe3 {[%clk 0:02:00.8]}
23... Rae8 {[%clk 0:01:09.7]} 24. Qg3+ {[%clk 0:02:00.2]} 24... Kd7 {[%clk
0:01:03.3]} 25. Bg6 {[%clk 0:01:57.3]} 25... Re5 {[%clk 0:00:57.5]} 26. Rad1
{[%clk 0:01:50.6]} 26... Rg5 {[%clk 0:00:53.7]} 27. Qh3+ {[%clk 0:01:49.7]}
27... Kc7 {[%clk 0:00:52.2]} 28. Bc2 {[%clk 0:01:42.5]} 28... Nd4 {[%clk
0:00:48.6]} 29. Qc3+ {[%clk 0:01:34.5]} 29... Nc6 {[%clk 0:00:48.3]} 30. Ba4
{[%clk 0:01:30.8]} 30... Qxc3 {[%clk 0:00:44.1]} 31. bxc3 {[%clk 0:01:29.9]}
31... Ne5 {[%clk 0:00:44.3]} 32. f4 {[%clk 0:01:26.1]} 32... Rg4 {[%clk
0:00:44.1]} 33. fxe5 {[%clk 0:01:20.7]} 33... Rxf1+ {[%clk 0:00:43.6]} 34. Rxf1
{[%clk 0:01:20.3]} 34... Rxa4 {[%clk 0:00:44.4]} 35. Rf7+ {[%clk 0:01:19.4]}
35... Kc6 {[%clk 0:00:44.7]} 36. Rxg7 {[%clk 0:01:17.9]} 36... Rxa3 {[%clk
0:00:44.9]} 37. e6 {[%clk 0:01:18.3]} 37... Rxc3 {[%clk 0:00:43.8]} 38. Kf2
{[%clk 0:01:18.2]} 38... Rc4 {[%clk 0:00:42.6]} 39. h4 {[%clk 0:01:15.5]} 39...
Rxh4 {[%clk 0:00:42.3]} 40. g4 {[%clk 0:01:15.4]} 40... Rh2+ {[%clk 0:00:41]}
41. Kf3 {[%clk 0:01:15]} 41... Rh1 {[%clk 0:00:40.9]} 42. g5 {[%clk 0:01:14.3]}
42... Rf1+ {[%clk 0:00:39.5]} 43. Ke2 {[%clk 0:01:13.7]} 43... Rf5 {[%clk
0:00:40.2]} 44. e7 {[%clk 0:01:12.4]} 44... Re5+ {[%clk 0:00:40.4]} 45. Kd3
{[%clk 0:01:12.9]} 45... a5 {[%clk 0:00:40.2]} 46. g6 {[%clk 0:01:09.8]} 46...
a4 {[%clk 0:00:40.1]} 47. Rf7 {[%clk 0:01:09.8]} 47... a3 {[%clk 0:00:37.5]} 48.
g7 {[%clk 0:01:09.4]} 48... a2 {[%clk 0:00:26.9]} 49. Rf6+ {[%clk 0:01:00.6]}
49... Kd7 {[%clk 0:00:24.3]} 50. g8=Q {[%clk 0:00:52.6]} 50... Rxe7 {[%clk
0:00:16.5]} 51. Qxd5+ {[%clk 0:00:51.4]} 51... Kc7 {[%clk 0:00:15.4]} 52. Qd6+
{[%clk 0:00:46.9]} 52... Kc8 {[%clk 0:00:11.9]} 53. Rf8+ {[%clk 0:00:42.3]} 1-0